fUST/lending_fUST_20241112
["ID","MTS","AMOUNT","RATE_DAILY","PERIOD"]
[342009643,1731360664895,-166.666666,0.00024482,2]
[342009644,1731360664904,-834.46,0.00024657,2]
[342009645,1731360664914,-834.46,0.00024931,2]
[342009646,1731360664923,-834.46,0.00025205,2]
[342009647,1731360664932,-834.46,0.00025479,2]
[342009648,1731360664942,-834.46,0.00025753,2]
[342009649,1731360664952,-834.46,0.00026027,2]
[342009650,1731360664962,-834.46,0.00026301,2]
[342009651,1731360664971,-1083.35113467,0.00026905,3]
[342009652,1731360664981,-2544.0,0.00026905,3]
[342009653,1731360664990,-2544.0,0.00026905,3]
[342009654,1731360665000,-2544.0,0.00026905,3]
[342009655,1731360665010,-2544.0,0.00026905,3]
[342009656,1731360665020,-2544.0,0.00026905,3]
[342009657,1731360665030,-2544.0,0.00026905,3]
[342009658,1731360665039,-2544.0,0.00026905,3]
[342009659,1731360665049,-2544.0,0.00026905,3]
[342009660,1731360665059,-2544.0,0.00026905,3]
[342009661,1731360665068,-2544.0,0.00026905,3]
[342009662,1731360665078,-2544.0,0.00026905,3]
[342009663,1731360665087,-2544.0,0.00026905,3]
[342009664,1731360665100,-2544.0,0.00026905,3]
[342009665,1731360665109,-2544.0,0.00026905,3]
[342009666,1731360665119,-2544.0,0.00026905,3]
[342009667,1731360665128,-823.0,0.00026995,2]
[342009668,1731360665138,-192.22502921,0.00027,2]
[342009669,1731360665148,-3674.3,0.00027,14]
[342009670,1731360665157,-1831.75,0.00027,14]
[342009671,1731360665167,-7692.13985298,0.00027,2]
[342009672,1731360665176,-500.0,0.00027,23]
[342009673,1731360665186,-160.0,0.0002703,4]
[342009674,1731360665196,-1111.677319,0.00027083,2]
[342009675,1731360665207,-1196.543706,0.00027083,2]
[342009676,1731360665216,-172.274968,0.00027083,2]
[342009677,1731360665226,-186.654137,0.00027083,2]
[342009678,1731360665236,-298.47664994,0.00027123,2]
[342009679,1731360665245,-547.53,0.00027123,2]
[342009680,1731360665255,-738.39,0.00027123,2]
[342009681,1731360665265,-1866.48,0.00027123,2]
[342009682,1731360665274,-786.79,0.00027123,2]
[342009683,1731360665284,-898.65,0.00027123,2]
[342009684,1731360665293,-1724.2,0.00027123,2]
[342009685,1731360665302,-540.38,0.00027123,2]
[342009686,1731360665312,-1627.88,0.00027123,2]
[342009687,1731360665321,-699.54,0.00027123,2]
[342009688,1731360665330,-500.0,0.00027123,2]
[342009689,1731360665339,-500.0,0.00027123,2]
[342009690,1731360665350,-1094.01,0.00027123,2]
[342009691,1731360665360,-539.31,0.00027123,2]
[342009692,1731360665370,-1594.23,0.00027123,2]
[342009693,1731360665380,-500.0,0.00027123,2]
[342009694,1731360665390,-3482.34,0.00027123,2]
[342009695,1731360665400,-763.2,0.00027123,2]
[342009696,1731360665410,-1210.63,0.00027123,2]
[342009697,1731360665420,-701.5,0.00027123,2]
[342009698,1731360665430,-861.42,0.00027123,2]
[342009699,1731360665439,-1641.8,0.00027123,2]
[342009700,1731360665449,-1250.97,0.00027123,2]
[342009701,1731360665458,-1168.75,0.00027123,2]
[342009702,1731360665467,-545.11,0.00027123,2]
[342009703,1731360665477,-500.0,0.00027123,2]
[342009704,1731360665488,-541.44450481,0.00027123,2]
[342009705,1731360665497,-659.99,0.00027123,2]
[342009706,1731360665507,-3723.47,0.00027123,2]
[342009707,1731360665516,-1715.14,0.00027123,2]
[342009708,1731360665526,-701.05,0.00027123,2]
[342009709,1731360665535,-1069.59,0.00027123,2]
[342009710,1731360665545,-4222.88,0.00027123,2]
[342009711,1731360665555,-784.01,0.00027123,2]
[342009712,1731360665564,-2071.63,0.00027123,2]
[342009713,1731360665573,-520.39,0.00027123,2]
[342009714,1731360665583,-500.0,0.00027123,2]
[342009715,1731360665596,-1549.43,0.00027123,2]
[342009716,1731360665608,-4961.39,0.00027123,2]
[342009717,1731360665618,-500.0,0.00027123,2]
[342009718,1731360665722,-1296.98,0.00027123,2]
[342009719,1731360665735,-913.88,0.00027123,2]
[342009720,1731360665744,-512.8,0.00027123,2]
[342009721,1731360665754,-190.0,0.0002715,5]
[342009722,1731360665762,-200.40515378,0.00027275,2]
[342009723,1731360665772,-7760.22,0.000273,14]
[342009724,1731360665781,-160.0,0.00027336,5]
[342009725,1731360665790,-4947.0,0.00027358,14]
[342009726,1731360665800,-343.0,0.00027386,2]
[342009727,1731360665809,-500.0,0.00027397,2]
[342009728,1731360665818,-507.64288794,0.00027397,2]
[342009729,1731360665826,-547.53,0.00027397,2]
[342009730,1731360665836,-500.0,0.00027397,2]
[342009731,1731360665848,-500.0,0.00027397,6]
[342009732,1731360665857,-500.0,0.00027397,10]
[342009733,1731360665866,-501.0860692,0.00027397,14]
[342009734,1731360665876,-738.39,0.00027397,2]
[342009735,1731360665885,-1866.48,0.00027397,2]
[342009736,1731360665895,-1000.0,0.00027397,2]
[342009737,1731360665905,-1000.0,0.00027397,2]
[342009738,1731360665915,-1000.0,0.00027397,2]
[342009739,1731360665924,-1002.04220807,0.00027397,2]
[342009740,1731360665934,-786.79,0.00027397,2]
[342009741,1731360665944,-898.65,0.00027397,2]
[342009742,1731360665954,-1724.2,0.00027397,2]
[342009743,1731360665963,-540.38,0.00027397,2]
[342009744,1731360665973,-1627.88,0.00027397,2]
[342009745,1731360665983,-699.54,0.00027397,2]
[342009746,1731360665992,-500.0,0.00027397,2]
[342009747,1731360666002,-500.0,0.00027397,2]
[342009748,1731360666012,-1094.01,0.00027397,2]
[342009749,1731360666022,-500.0,0.00027397,2]
[342009750,1731360666032,-500.0,0.00027397,2]
[342009751,1731360666042,-500.0,0.00027397,2]
[342009752,1731360666052,-500.0,0.00027397,2]
[342009753,1731360666062,-500.0,0.00027397,2]
[342009754,1731360666072,-500.0,0.00027397,2]
[342009755,1731360666083,-500.0,0.00027397,2]
[342009756,1731360666095,-500.0,0.00027397,2]
[342009757,1731360666105,-175.50557786,0.00027397,2]
[342009758,1731360666116,-539.31,0.00027397,2]
[342009759,1731360666126,-1594.23,0.00027397,2]
[342009760,1731360666137,-500.0,0.00027397,2]
[342009761,1731360666147,-3482.34,0.00027397,2]
[342009762,1731360666159,-763.2,0.00027397,2]
[342009763,1731360666169,-1210.63,0.00027397,2]
[342009764,1731360666180,-701.5,0.00027397,2]
[342009765,1731360666190,-861.42,0.00027397,2]
[342009766,1731360666201,-1641.8,0.00027397,2]
[342009767,1731360666212,-1250.97,0.00027397,2]
[342009768,1731360666222,-1168.75,0.00027397,2]
[342009769,1731360666233,-545.11,0.00027397,2]
[342009770,1731360666243,-500.0,0.00027397,2]
[342009771,1731360666253,-500.0,0.00027397,2]
[342009772,1731360666262,-500.0,0.00027397,2]
[342009773,1731360666272,-500.0,0.00027397,2]
[342009774,1731360666282,-500.0,0.00027397,2]
[342009775,1731360666292,-500.0,0.00027397,2]
[342009776,1731360666301,-568.57401312,0.00027397,2]
[342009777,1731360666310,-500.0,0.00027397,2]
[342009778,1731360666320,-1000.0,0.00027397,2]
[342009779,1731360666330,-868.02046499,0.00027397,2]
[342009780,1731360666340,-659.99,0.00027397,2]
[342009781,1731360666353,-3723.47,0.00027397,2]
[342009782,1731360666363,-1715.14,0.00027397,2]
[342009783,1731360666372,-701.05,0.00027397,2]
[342009784,1731360666382,-1069.59,0.00027397,2]
[342009785,1731360666392,-4222.88,0.00027397,2]
[342009786,1731360666402,-784.01,0.00027397,2]
[342009787,1731360666412,-2071.63,0.00027397,2]
[342009788,1731360666421,-520.39,0.00027397,2]
[342009789,1731360666431,-581.6147236,0.00027397,2]
[342009790,1731360666440,-1549.43,0.00027397,2]
[342009791,1731360666451,-4961.39,0.00027397,2]
[342009792,1731360666461,-254.5872747,0.00027397,2]
[342009793,1731360666471,-1296.98,0.00027397,2]
[342009794,1731360666480,-913.88,0.00027397,2]
[342009795,1731360666489,-512.8,0.00027397,2]
[342009796,1731360666499,-500.0,0.00027397,7]
[342009797,1731360666508,-424.21661069,0.00027397,60]
[342009798,1731360666517,-151.0,0.00027397,7]
[342009799,1731360666526,-151.0,0.00027397,7]
[342009800,1731360666535,-151.0,0.00027397,7]
[342009801,1731360666544,-152.968394,0.00027397,7]
[342009802,1731360666553,-151.0,0.00027397,2]
[342009803,1731360666562,-151.0,0.00027397,2]
[342009804,1731360666572,-151.0,0.00027397,2]
[342009805,1731360666582,-151.0,0.00027397,2]
[342009806,1731360666603,-151.0,0.00027397,2]
[342009807,1731360666613,-151.0,0.00027397,2]
[342009808,1731360666622,-151.0,0.00027397,2]
[342009809,1731360666631,-151.0,0.00027397,2]
[342009810,1731360666641,-151.0,0.00027397,2]
[342009811,1731360666651,-151.0,0.00027397,2]
[342009812,1731360666660,-151.0,0.00027397,2]
[342009813,1731360666670,-151.0,0.00027397,2]
[342009814,1731360666679,-151.0,0.00027397,2]
[342009815,1731360666690,-151.0,0.00027397,2]
[342009816,1731360666700,-151.0,0.00027397,2]
[342009817,1731360666710,-151.0,0.00027397,2]
[342009818,1731360666720,-151.0,0.00027397,2]
[342009819,1731360666730,-173.226454,0.00027397,2]
[342009820,1731360666740,-278.26894471,0.00027397,2]
[342009821,1731360666750,-25614.0,0.000274,14]
[342009822,1731360666759,-500.0,0.00027409,7]
[342009823,1731360666768,-1111.677319,0.00027422,2]
[342009824,1731360666778,-1196.543706,0.00027422,2]
[342009825,1731360666787,-44306.69182777,0.000275,2]
[342009826,1731360666797,-2768.05767119,0.000275,30]
[342009827,1731360666808,-151.0,0.00027579,2]
[342009828,1731360666817,-343.0,0.00027616,2]
[342009829,1731360666826,-158.0,0.00027616,2]
[342009830,1731360666836,-160.0,0.00027642,6]
[342009831,1731360666848,-190.0,0.00027661,5]
[342009832,1731360666858,-500.0,0.00027671,7]
[342009833,1731360666869,-547.53,0.00027671,2]
[342009834,1731360666879,-738.39,0.00027671,2]
[342009835,1731360666889,-1866.48,0.00027671,2]
[342009836,1731360666898,-786.79,0.00027671,2]
[342009837,1731360666908,-898.65,0.00027671,2]
[342009838,1731360666917,-1724.2,0.00027671,2]
[342009839,1731360666926,-540.38,0.00027671,2]
[342009840,1731360666935,-1627.88,0.00027671,2]
[342009841,1731360666944,-699.54,0.00027671,2]
[342009842,1731360666953,-500.0,0.00027671,2]
[342009843,1731360666962,-589.44400161,0.00027671,2]
[342009844,1731360666972,-1094.01,0.00027671,2]
[342009845,1731360666982,-539.31,0.00027671,2]
[342009846,1731360666992,-1594.23,0.00027671,2]
[342009847,1731360667001,-500.0,0.00027671,2]
[342009848,1731360667010,-3482.34,0.00027671,2]
[342009849,1731360667019,-763.2,0.00027671,2]
[342009850,1731360667029,-1210.63,0.00027671,2]
[342009851,1731360667042,-701.5,0.00027671,2]
[342009852,1731360667053,-861.42,0.00027671,2]
[342009853,1731360667062,-1641.8,0.00027671,2]
[342009854,1731360667072,-1250.97,0.00027671,2]
[342009855,1731360667082,-1168.75,0.00027671,2]
[342009856,1731360667091,-545.11,0.00027671,2]
[342009857,1731360667103,-641.74615555,0.00027671,2]
[342009858,1731360667113,-659.99,0.00027671,2]
[342009859,1731360667122,-3723.47,0.00027671,2]
[342009860,1731360667131,-1715.14,0.00027671,2]
[342009861,1731360667141,-701.05,0.00027671,2]
[342009862,1731360667151,-1069.59,0.00027671,2]
[342009863,1731360667161,-4222.88,0.00027671,2]
[342009864,1731360667171,-784.01,0.00027671,2]
[342009865,1731360667181,-2071.63,0.00027671,2]
[342009866,1731360667193,-520.39,0.00027671,2]
[342009867,1731360667203,-1549.43,0.00027671,2]
[342009868,1731360667213,-4961.39,0.00027671,2]
[342009869,1731360667223,-1296.98,0.00027671,2]
[342009870,1731360667233,-913.88,0.00027671,2]
[342009871,1731360667243,-512.8,0.00027671,2]
[342009872,1731360667252,-300.0,0.000277,2]
[342009873,1731360667262,-1101.8577852,0.00027715,2]
[342009874,1731360667272,-1111.677319,0.0002776,2]
[342009875,1731360667282,-172.274968,0.0002776,2]
[342009876,1731360667292,-1196.543706,0.0002776,2]
[342009877,1731360667302,-413.5135009,0.0002789,30]
[342009878,1731360667314,-1831.75,0.000279,14]
[342009879,1731360667324,-823.0,0.00027913,2]
[342009880,1731360667335,-500.0,0.00027945,7]
[342009881,1731360667347,-547.53,0.00027945,2]
[342009882,1731360667356,-738.39,0.00027945,2]
[342009883,1731360667365,-1866.48,0.00027945,2]
[342009884,1731360667375,-786.79,0.00027945,2]
[342009885,1731360667384,-898.65,0.00027945,2]
[342009886,1731360667394,-1724.2,0.00027945,2]
[342009887,1731360667403,-540.38,0.00027945,2]
[342009888,1731360667412,-1627.88,0.00027945,2]
[342009889,1731360667422,-699.54,0.00027945,2]
[342009890,1731360667431,-290.67994406,0.00027945,2]
[342009891,1731360667440,-1094.01,0.00027945,2]
[342009892,1731360667449,-539.31,0.00027945,2]
[342009893,1731360667459,-1594.23,0.00027945,2]
[342009894,1731360667468,-235.6171015,0.00027945,2]
[342009895,1731360667477,-3482.34,0.00027945,2]
[342009896,1731360667486,-763.2,0.00027945,2]
[342009897,1731360667496,-1210.63,0.00027945,2]
[342009898,1731360667505,-701.5,0.00027945,2]
[342009899,1731360667514,-861.42,0.00027945,2]
[342009900,1731360667523,-1641.8,0.00027945,2]
[342009901,1731360667532,-1250.97,0.00027945,2]
[342009902,1731360667542,-103.00577462,0.00027945,2]
[342009903,1731360667556,-1065.74422538,0.00027945,2]
[342009904,1731360667566,-545.11,0.00027945,2]
[342009905,1731360667575,-313.1853571,0.00027945,2]
[342009906,1731360667587,-346.8046429,0.00027945,2]
[342009907,1731360667686,-3723.47,0.00027945,2]
[342009908,1731360667696,-1715.14,0.00027945,2]
[342009909,1731360667706,-701.05,0.00027945,2]
[342009910,1731360667715,-1069.59,0.00027945,2]
[342009911,1731360667725,-4222.88,0.00027945,2]
[342009912,1731360667734,-784.01,0.00027945,2]
[342009913,1731360667744,-2071.63,0.00027945,2]
[342009914,1731360667753,-520.39,0.00027945,2]
[342009915,1731360667763,-1549.43,0.00027945,2]
[342009916,1731360667773,-4961.39,0.00027945,2]
[342009917,1731360667782,-1296.98,0.00027945,2]
[342009918,1731360667791,-913.88,0.00027945,2]
[342009919,1731360667801,-512.8,0.00027945,2]
[342009920,1731360667811,-160.0,0.00027948,7]
[342009921,1731360667821,-4628.37615129,0.0002799,2]
[342009922,1731360667887,-834.46,0.00026575,2]
[342009923,1731360667897,-834.46,0.00026849,2]
[342009924,1731360667906,-834.46,0.00027123,2]
[342009925,1731360667916,-834.46,0.00027397,2]
[342009926,1731360667926,-27324.74551834,0.0002799,2]
[342009927,1731360667935,-1165.90142276,0.0002799,7]
[342009928,1731360667944,-160.0,0.00027999,10]
[342009929,1731360667953,-160.0,0.00027999,10]
[342009930,1731360667963,-160.0,0.00027999,10]
[342009931,1731360667972,-178.19241804,0.00027999,10]
[342009932,1731360667982,-930.29748875,0.00028,2]
[342009933,1731360667992,-351425.90964544,0.00028,15]
[342009934,1731360668001,-391.35754959,0.00028,15]
[342009935,1731360668011,-3674.3,0.00028,30]
[342009936,1731360668021,-500.0,0.00028,26]
[342009937,1731360668031,-500.0,0.00028059,2]
[342009938,1731360668041,-151.0,0.00028059,2]
[342009939,1731360668051,-3200.0,0.00028059,2]
[342009940,1731360668060,-3185.86615466,0.00028082,2]
[342009941,1731360668070,-2000.0,0.00028091,5]
[342009942,1731360668080,-2000.0,0.00028091,5]
[342009943,1731360668090,-321.03849095,0.00028091,5]
[342009944,1731360668106,-2000.0,0.00028091,2]
[342009945,1731360668116,-2000.0,0.00028091,5]
[342009946,1731360668126,-2000.0,0.00028091,5]
[342009947,1731360668135,-1111.677319,0.00028099,2]
[342009948,1731360668144,-1196.543706,0.00028099,2]
[342009949,1731360668154,-152.809,0.0002812,120]
[342009950,1731360668163,-7.05481705,0.00028173,6]
[342009951,1731360668176,-182.94518295,0.00028173,6]
[342009952,1731360668186,-500.0,0.00028219,2]
[342009953,1731360668195,-500.0,0.00028219,7]
[342009954,1731360668204,-547.73451631,0.00028219,2]
[342009955,1731360668214,-738.51701166,0.00028219,2]
[342009956,1731360668223,-1866.55013365,0.00028219,2]
[342009957,1731360668232,-786.98855294,0.00028219,2]
[342009958,1731360668241,-898.81293722,0.00028219,2]
[342009959,1731360668251,-1724.43267988,0.00028219,2]
[342009960,1731360668260,-540.38418871,0.00028219,2]
[342009961,1731360668270,-1627.97756177,0.00028219,2]
[342009962,1731360668280,-699.57801687,0.00028219,2]
[342009963,1731360668289,-1094.20795251,0.00028219,2]
[342009964,1731360668299,-539.38708869,0.00028219,2]
[342009965,1731360668309,-1057.97323104,0.00028219,2]
[342009966,1731360668324,-536.46849227,0.00028219,2]
[342009967,1731360668334,-3482.54663285,0.00028219,2]
[342009968,1731360668345,-556.39498915,0.00028219,2]
[342009969,1731360668466,-500.0,0.00021917,2]
[342009970,1731360668475,-500.0,0.00021917,2]
[342009971,1731360668484,-500.0,0.00021917,2]
[342009972,1731360668494,-500.0,0.00021917,2]
[342009973,1731360668503,-500.0,0.00021917,2]
[342009974,1731360668512,-500.0,0.00022191,2]
[342009975,1731360668521,-500.0,0.00022191,2]
[342009976,1731360668531,-500.0,0.00022191,2]
[342009977,1731360668540,-834.46,0.00027671,2]
[342009978,1731360668549,-834.46,0.00027945,2]
[342009979,1731360668558,-206.98272287,0.00028219,2]
[342009980,1731360668568,-1210.80502376,0.00028219,2]
[342009981,1731360668578,-701.5424906,0.00028219,2]
[342009982,1731360668588,-861.61003443,0.00028219,2]
[342009983,1731360668601,-1641.95980017,0.00028219,2]
[342009984,1731360668611,-1251.14956544,0.00028219,2]
[342009985,1731360668621,-1168.76818805,0.00028219,2]
[342009986,1731360668631,-545.18541314,0.00028219,2]
[342009987,1731360668642,-660.10700889,0.00028219,2]
[342009988,1731360668651,-3723.47948426,0.00028219,2]
[342009989,1731360668660,-1715.29593293,0.00028219,2]
[342009990,1731360668670,-701.27021716,0.00028219,2]
[342009991,1731360668681,-1069.68068083,0.00028219,2]
[342009992,1731360668690,-4223.0970862,0.00028219,2]
[342009993,1731360668700,-784.04320402,0.00028219,2]
[342009994,1731360668709,-2071.68,0.00028219,2]
[342009995,1731360668719,-520.62049882,0.00028219,2]
[342009996,1731360668728,-1549.45028182,0.00028219,2]
[342009997,1731360668738,-4961.61943869,0.00028219,2]
[342009998,1731360668747,-1296.99827006,0.00028219,2]
[342009999,1731360668756,-913.98515814,0.00028219,2]
[342010000,1731360668765,-512.85735358,0.00028219,2]
[342010001,1731360668775,-160.0,0.00028254,8]
[342010002,1731360668784,-7760.22,0.000283,30]
[342010003,1731360668794,-1123.0,0.0002831,2]
[342010004,1731360668803,-2391.0,0.0002831,2]
[342010005,1731360668812,-61401.03965238,0.000284,2]
[342010006,1731360668821,-300.0,0.000284,13]
[342010007,1731360668830,-1111.677319,0.00028437,2]
[342010008,1731360668840,-172.274968,0.00028437,2]
[342010009,1731360668852,-1196.543706,0.00028437,2]
[342010010,1731360668861,-500.0,0.00028493,7]
[342010011,1731360668871,-25614.0,0.000285,14]
[342010012,1731360668880,-160.0,0.00028559,9]
[342010013,1731360668889,-150.46935,0.000286,2]
[342010014,1731360668899,-190.0,0.00028685,6]
[342010015,1731360668909,-1021.3842447,0.000287,2]
[342010016,1731360668918,-300.0,0.000287,2]
[342010017,1731360668927,-152.821,0.0002874,7]
[342010018,1731360668937,-500.0,0.00028767,7]
[342010019,1731360668946,-1101.8577852,0.00028794,2]
[342010020,1731360668956,-160.0,0.00028865,10]
[342010021,1731360668965,-1831.75,0.000289,14]
[342010022,1731360668974,-152.837,0.0002891,2]
[342010023,1731360668984,-5000.0,0.00028984,30]
[342010024,1731360668994,-158.0,0.00028997,2]
[342010025,1731360669003,-860.48600101,0.00029,2]
[342010026,1731360669012,-3674.3,0.00029,30]
[342010027,1731360669022,-24995.36733032,0.00029,30]
[342010028,1731360669031,-500.0,0.00029,29]
[342010029,1731360669040,-633.21616153,0.00029041,7]
[342010030,1731360669050,-1333.0,0.00029041,120]
[342010031,1731360669059,-500.0,0.00029053,7]
[342010032,1731360669069,-1537.397347,0.0002906,2]
[342010033,1731360669078,-172.345487,0.0002906,2]
[342010034,1731360669087,-1901.749585,0.0002906,2]
[342010035,1731360669100,-2000.0,0.00029091,5]
[342010036,1731360669110,-2000.0,0.00029091,5]
[342010037,1731360669119,-1010.09423931,0.00029091,5]
[342010038,1731360669128,-1868.68154873,0.00029091,5]
[342010039,1731360669139,-513.07340557,0.00029091,5]
[342010040,1731360669148,-2000.0,0.00029091,5]
[342010041,1731360669158,-2000.0,0.00029091,5]
[342010042,1731360669167,-441.38094761,0.00029091,5]
[342010043,1731360669177,-2000.0,0.00029091,5]
[342010044,1731360669187,-48042.66452485,0.000291,2]
[342010045,1731360669198,-160.0,0.00029171,11]
[342010046,1731360669208,-190.0,0.00029197,6]
[342010047,1731360669218,-152.846,0.0002936,3]
[342010048,1731360669228,-1152.0,0.00029366,2]
[342010049,1731360669239,-7760.22,0.000294,30]
[342010050,1731360669250,-1537.397347,0.00029423,2]
[342010051,1731360669260,-1901.749585,0.00029423,2]
[342010052,1731360669270,-160.0,0.00029477,12]
[342010053,1731360669279,-1007.167394,0.00029516,3]
[342010054,1731360669289,-3185.86615466,0.00029518,2]
[342010055,1731360669299,-500.0,0.00029519,2]
[342010056,1731360669308,-4947.0,0.00029547,30]
[342010057,1731360669318,-1533.94,0.00029573,30]
[342010058,1731360669327,-417.51845754,0.00029589,4]
[342010059,1731360669340,-250.25419035,0.00029589,4]
[342010062,1731361012549,273.807264,0.00019976,2]
[342010063,1731361012885,273.807264,0.00020661,2]
[342010064,1731361027840,1169.27083333,0.00020845,2]
[342010065,1731361048904,174.693309,0.00020458,2]
[342010068,1731361186490,500.0,0.00027,60]
[342010069,1731361197227,500.0,0.00027,60]
[342010070,1731361208316,500.0,0.00027,60]
[342010071,1731361218119,500.0,0.00027,60]
[342010072,1731361226970,202.27218156,0.00027,60]
[342010073,1731361276298,499.1126553,0.00020611,2]
[342010074,1731361276872,1409.94076878,0.0002046,7]
[342010075,1731361340309,1169.27083333,0.00020845,2]
[342010078,1731361553895,1497.9,0.00027,60]
[342010079,1731361620720,1310.9954909,0.000208,2]
[342010080,1731361629732,216.96747708,0.000208,2]
[342010081,1731361651982,1169.27083333,0.00020845,2]
[342010085,1731361721996,273.807264,0.00020353,2]
[342010091,1731361826098,1147.12105452,0.000208,2]
[342010157,1731361836188,-1169.27083333,0.00020845,2]
[342010158,1731361836197,-773.36,0.0002089,3]
[342010159,1731361836207,-300.0,0.00020898,2]
[342010160,1731361836216,-300.0,0.00020898,2]
[342010161,1731361836225,-97.54916667,0.00020899,2]
[342010162,1731361836236,-413.00231289,0.00020899,2]
[342010163,1731361836247,-261.33072194,0.00020899,2]
[342010164,1731361836257,-48784.41232157,0.00020899,2]
[342010194,1731361838531,-3337.10000014,0.00020899,2]
[342010400,1731361840417,-282.25909852,0.00020899,2]
[342010403,1731361840429,-825.37979037,0.00020899,2]
[342010726,1731361843779,-1169.27083333,0.00020845,2]
[342010728,1731361843789,-812.8264695,0.00020899,2]
[342010731,1731361843807,-705.7541339,0.00020899,2]
[342010881,1731361846611,-394.4,0.00020899,2]
[342010882,1731361846624,-17770.18871197,0.00020899,2]
[342010883,1731361846709,-1765.04717145,0.00020899,2]
[342010884,1731361846722,-2642.91497184,0.00020899,2]
[342010885,1731361846732,-646.81002816,0.000209,2]
[342010886,1731361846744,-17571.32935,0.000209,2]
[342011108,1731362472533,591.057751,0.00020793,2]
[342011109,1731362585357,1000.0,0.00027,75]
[342011110,1731362588510,1169.27083333,0.00020845,2]
[342011111,1731362603959,6421.09702911,0.00020425,2]
[342011112,1731362604310,6421.09702911,0.00020697,2]
[342011113,1731362640832,300.0,0.00020844,2]
[342011114,1731362642226,300.0,0.00020844,2]
[342011115,1731362761335,24900.0,0.00020793,2]
[342011116,1731362801407,258.6373018,0.00020754,2]
[342011120,1731362900473,1169.27083333,0.00020845,2]
[342011158,1731363032626,-329.35755,0.00020845,2]
[342011285,1731363038782,-332.18999188,0.00020845,2]
[342011416,1731363040513,-507.72329145,0.00020845,2]
[342011417,1731363040523,-500.0,0.00020845,2]
[342011418,1731363040534,-500.0,0.00020845,2]
[342011419,1731363040543,-450.95680702,0.00020845,2]
[342011420,1731363040553,-300.0,0.00021232,2]
[342011421,1731363040565,-300.0,0.00021232,2]
[342011422,1731363040576,-1821.85790153,0.00021275,2]
[342011425,1731363040624,-1244.322068,0.00021275,2]
[342011428,1731363040636,-360.89015631,0.00021275,2]
[342011511,1731363043766,-4116.42898455,0.00021275,2]
[342011513,1731363043777,-169.547,0.0002131,2]
[342011515,1731363043786,-185.02575,0.0002131,2]
[342011517,1731363043795,-591.057751,0.00021477,2]
[342011518,1731363043805,-2519.0,0.00021679,2]
[342011520,1731363043815,-1303.5,0.00021717,2]
[342011522,1731363043824,-478.44,0.00021807,3]
[342011524,1731363043833,-1303.5,0.00021811,2]
[342011526,1731363043843,-349.1844179,0.00021816,2]
[342011528,1731363043853,-500.0,0.00021816,2]
[342011530,1731363043862,-500.0,0.00021816,2]
[342011532,1731363043872,-269.99890493,0.00021816,2]
[342011534,1731363043882,-500.0,0.00021816,2]
[342011536,1731363043891,-500.0,0.00021816,2]
[342011538,1731363043901,-500.0,0.00021816,2]
[342011540,1731363043910,-500.0,0.00021816,2]
[342011542,1731363043920,-500.0,0.00021816,2]
[342011545,1731363043933,-500.0,0.00021816,2]
[342011547,1731363043943,-500.0,0.00021816,2]
[342011548,1731363043953,-500.0,0.00021816,2]
[342011551,1731363043963,-500.0,0.00021816,2]
[342011553,1731363043973,-500.0,0.00021816,2]
[342011555,1731363043983,-500.0,0.00021816,2]
[342011557,1731363043993,-500.0,0.00021816,2]